[Event "Titled Tuesday Blitz June 27 Early 2023"]
[White "Fernandez Guillen, Ernesto J."]
[Black "FuenfgegenWilly"]
[WhiteFideId "3512428"]
[WhiteElo "2701"]
[BlackElo "2387"]
[Result "1/2-1/2"]
[Round "1"]
[TimeControl "180+2"]
[Date "2023.06.27"]
[WhiteClock "0:00:08"]
[BlackClock "0:00:03"]
[Board "127"]

1. e4 {[%clk 0:02:10]}  e5 {[%clk 0:02:55]} 2. Nf3 {[%clk 0:02:09]}  Nc6 {[%clk 0:02:56]} 3. d4 {[%clk 0:02:10]}  exd4 {[%clk 0:02:56]} 4. Bc4 {[%clk 0:02:11]}  Nf6 {[%clk 0:02:56]} 5. O-O {[%clk 0:02:12]}  Nxe4 {[%clk 0:02:56]} 6. Re1 {[%clk 0:02:12]}  d5 {[%clk 0:02:56]} 7. Bxd5 {[%clk 0:02:13]}  Qxd5 {[%clk 0:02:56]} 8. Nc3 {[%clk 0:02:13]}  Qh5 {[%clk 0:02:57]} 9. Nxe4 {[%clk 0:02:14]}  Be6 {[%clk 0:02:57]} 10. Bg5 {[%clk 0:02:15]}  Bd6 {[%clk 0:02:57]} 11. Bf6 {[%clk 0:02:16]}  Bxh2+ {[%clk 0:02:39]} 12. Nxh2 {[%clk 0:02:16]}  Qxd1 {[%clk 0:02:39]} 13. Raxd1 {[%clk 0:02:17]}  gxf6 {[%clk 0:02:39]} 14. Nxf6+ {[%clk 0:02:18]}  Kf8 {[%clk 0:02:25]} 15. Nh5 {[%clk 0:02:19]}  Rg8 {[%clk 0:02:05]} 16. a3 {[%clk 0:02:18]}  Rg5 {[%clk 0:01:57]} 17. Nf4 {[%clk 0:02:17]}  Re8 {[%clk 0:01:55]} 18. Nf3 {[%clk 0:02:16]}  Rb5 {[%clk 0:01:53]} 19. b4 {[%clk 0:02:12]}  a5 {[%clk 0:01:49]} 20. Nxd4 {[%clk 0:02:09]}  Nxd4 {[%clk 0:01:47]} 21. Rxd4 {[%clk 0:02:10]}  c5 {[%clk 0:01:38]} 22. Re5 {[%clk 0:01:47]}  axb4 {[%clk 0:01:23]} 23. axb4 {[%clk 0:01:39]}  Rxb4 {[%clk 0:01:09]} 24. Rxb4 {[%clk 0:01:39]}  cxb4 {[%clk 0:01:10]} 25. Rb5 {[%clk 0:01:39]}  Rc8 {[%clk 0:00:57]} 26. Rxb4 {[%clk 0:01:39]}  Rxc2 {[%clk 0:00:48]} 27. Rxb7 {[%clk 0:01:39]}  Bf5 {[%clk 0:00:42]} 28. f3 {[%clk 0:01:39]}  Kg7 {[%clk 0:00:39]} 29. Kh2 {[%clk 0:01:39]}  Ra2 {[%clk 0:00:37]} 30. Kg3 {[%clk 0:01:39]}  Bc8 {[%clk 0:00:34]} 31. Rc7 {[%clk 0:01:39]}  Ba6 {[%clk 0:00:34]} 32. Kg4 {[%clk 0:01:32]}  Bf1 {[%clk 0:00:33]} 33. g3 {[%clk 0:01:32]}  Ra4 {[%clk 0:00:34]} 34. Kg5 {[%clk 0:01:25]}  h6+ {[%clk 0:00:33]} 35. Kf5 {[%clk 0:01:22]}  Ra5+ {[%clk 0:00:32]} 36. Kg4 {[%clk 0:01:21]}  Ra4 {[%clk 0:00:31]} 37. Rc5 {[%clk 0:01:12]}  Ra3 {[%clk 0:00:26]} 38. Nh5+ {[%clk 0:01:11]}  Kg6 {[%clk 0:00:23]} 39. Rc6+ {[%clk 0:01:05]}  Kh7 {[%clk 0:00:24]} 40. Rc7 {[%clk 0:00:50]}  Ra4+ {[%clk 0:00:20]} 41. Nf4 {[%clk 0:00:43]}  Kg7 {[%clk 0:00:20]} 42. Rc3 {[%clk 0:00:41]}  Ba6 {[%clk 0:00:19]} 43. Rc5 {[%clk 0:00:40]}  Bb7 {[%clk 0:00:19]} 44. Rc7 {[%clk 0:00:35]}  Ba8 {[%clk 0:00:19]} 45. Rc3 {[%clk 0:00:21]}  Bb7 {[%clk 0:00:19]} 46. Kh3 {[%clk 0:00:21]}  Ra1 {[%clk 0:00:17]} 47. Nh5+ {[%clk 0:00:21]}  Kg6 {[%clk 0:00:17]} 48. g4 {[%clk 0:00:22]}  Rf1 {[%clk 0:00:17]} 49. Nf4+ {[%clk 0:00:16]}  Kg7 {[%clk 0:00:16]} 50. Kg3 {[%clk 0:00:17]}  Rg1+ {[%clk 0:00:16]} 51. Kf2 {[%clk 0:00:16]}  Rb1 {[%clk 0:00:17]} 52. Rc7 {[%clk 0:00:16]}  Rb2+ {[%clk 0:00:17]} 53. Kg3 {[%clk 0:00:15]}  Rb3 {[%clk 0:00:17]} 54. Nh5+ {[%clk 0:00:15]}  Kg6 {[%clk 0:00:17]} 55. Kh4 {[%clk 0:00:13]}  Bxf3 {[%clk 0:00:15]} 56. Rd7 {[%clk 0:00:14]}  Ba8 {[%clk 0:00:11]} 57. Rd6+ {[%clk 0:00:14]}  Kh7 {[%clk 0:00:10]} 58. Rf6 {[%clk 0:00:14]}  Bd5 {[%clk 0:00:11]} 59. Rd6 {[%clk 0:00:13]}  Be6 {[%clk 0:00:10]} 60. Nf4 {[%clk 0:00:14]}  Re3 {[%clk 0:00:10]} 61. Rd4 {[%clk 0:00:13]}  Kg7 {[%clk 0:00:10]} 62. Nh5+ {[%clk 0:00:13]}  Kh7 {[%clk 0:00:10]} 63. Rf4 {[%clk 0:00:14]}  Kg8 {[%clk 0:00:10]} 64. Nf6+ {[%clk 0:00:14]}  Kg7 {[%clk 0:00:10]} 65. Ne8+ {[%clk 0:00:12]}  Kf8 {[%clk 0:00:10]} 66. Nd6 {[%clk 0:00:12]}  Ke7 {[%clk 0:00:10]} 67. Ne4 {[%clk 0:00:12]}  Re1 {[%clk 0:00:10]} 68. Ng3 {[%clk 0:00:12]}  Ra1 {[%clk 0:00:09]} 69. Rb4 {[%clk 0:00:13]}  Rd1 {[%clk 0:00:08]} 70. Rb7+ {[%clk 0:00:11]}  Rd7 {[%clk 0:00:09]} 71. Rb4 {[%clk 0:00:11]}  Rd5 {[%clk 0:00:09]} 72. Ne4 {[%clk 0:00:11]}  Re5 {[%clk 0:00:09]} 73. Rd4 {[%clk 0:00:10]}  Rd5 {[%clk 0:00:09]} 74. Rb4 {[%clk 0:00:10]}  Kf8 {[%clk 0:00:09]} 75. Kg3 {[%clk 0:00:10]}  Rd3+ {[%clk 0:00:09]} 76. Kf4 {[%clk 0:00:10]}  Rd1 {[%clk 0:00:10]} 77. Nf2 {[%clk 0:00:09]}  Rf1 {[%clk 0:00:10]} 78. Kg3 {[%clk 0:00:10]}  Rg1+ {[%clk 0:00:10]} 79. Kf4 {[%clk 0:00:10]}  Ra1 {[%clk 0:00:11]} 80. Ne4 {[%clk 0:00:09]}  Rf1+ {[%clk 0:00:11]} 81. Ke3 {[%clk 0:00:08]}  Kg7 {[%clk 0:00:12]} 82. Nf2 {[%clk 0:00:08]}  Rg1 {[%clk 0:00:12]} 83. Kf3 {[%clk 0:00:08]}  Bd5+ {[%clk 0:00:12]} 84. Ke3 {[%clk 0:00:08]}  Be6 {[%clk 0:00:13]} 85. Kf3 {[%clk 0:00:08]}  Bd5+ {[%clk 0:00:13]} 86. Kf4 {[%clk 0:00:08]}  Be6 {[%clk 0:00:13]} 87. Rd4 {[%clk 0:00:07]}  Ra1 {[%clk 0:00:12]} 88. Ne4 {[%clk 0:00:07]}  Rf1+ {[%clk 0:00:12]} 89. Ke3 {[%clk 0:00:07]}  Bxg4 {[%clk 0:00:10]} 90. Nf2 {[%clk 0:00:07]}  Be6 {[%clk 0:00:09]} 91. Ke2 {[%clk 0:00:08]}  Rg1 {[%clk 0:00:09]} 92. Kf3 {[%clk 0:00:08]}  Rg5 {[%clk 0:00:09]} 93. Ne4 {[%clk 0:00:08]}  Rf5+ {[%clk 0:00:09]} 94. Ke3 {[%clk 0:00:08]}  Rd5 {[%clk 0:00:09]} 95. Rb4 {[%clk 0:00:08]}  Ra5 {[%clk 0:00:09]} 96. Nd2 {[%clk 0:00:09]}  Ra3+ {[%clk 0:00:09]} 97. Kf4 {[%clk 0:00:09]}  Ra2 {[%clk 0:00:09]} 98. Nf3 {[%clk 0:00:09]}  Rf2 {[%clk 0:00:09]} 99. Kg3 {[%clk 0:00:10]}  Rf1 {[%clk 0:00:09]} 100. Kg2 {[%clk 0:00:10]}  Ra1 {[%clk 0:00:09]} 101. Kg3 {[%clk 0:00:10]}  Ra2 {[%clk 0:00:10]} 102. Kf4 {[%clk 0:00:11]}  Ra8 {[%clk 0:00:10]} 103. Ne5 {[%clk 0:00:11]}  Rh8 {[%clk 0:00:11]} 104. Rb2 {[%clk 0:00:11]}  Kf6 {[%clk 0:00:12]} 105. Nf3 {[%clk 0:00:10]}  h5 {[%clk 0:00:12]} 106. Nh4 {[%clk 0:00:11]}  Rg8 {[%clk 0:00:12]} 107. Nf3 {[%clk 0:00:10]}  Rg4+ {[%clk 0:00:13]} 108. Ke3 {[%clk 0:00:11]}  Rg3 {[%clk 0:00:12]} 109. Kf4 {[%clk 0:00:10]}  Rg4+ {[%clk 0:00:12]} 110. Ke3 {[%clk 0:00:11]}  Kg7 {[%clk 0:00:11]} 111. Rh2 {[%clk 0:00:11]}  Kh6 {[%clk 0:00:11]} 112. Ne5 {[%clk 0:00:10]}  Ra4 {[%clk 0:00:11]} 113. Rb2 {[%clk 0:00:08]}  Ra3+ {[%clk 0:00:11]} 114. Kf4 {[%clk 0:00:09]}  Ra4+ {[%clk 0:00:11]} 115. Ke3 {[%clk 0:00:10]}  h4 {[%clk 0:00:09]} 116. Rb8 {[%clk 0:00:10]}  Kg5 {[%clk 0:00:08]} 117. Nf3+ {[%clk 0:00:06]}  Kf6 {[%clk 0:00:05]} 118. Rh8 {[%clk 0:00:06]}  Ra3+ {[%clk 0:00:05]} 119. Kf4 {[%clk 0:00:06]}  Ra4+ {[%clk 0:00:05]} 120. Ke3 {[%clk 0:00:07]}  Bg4 {[%clk 0:00:03]} 121. Nxh4 {[%clk 0:00:04]}  Kg5 {[%clk 0:00:03]} 122. Nf3+ {[%clk 0:00:03]}  Bxf3 {[%clk 0:00:03]} 123. Kxf3 {[%clk 0:00:04]}  Ra3+ {[%clk 0:00:03]} 124. Ke4 {[%clk 0:00:05]}  f5+ {[%clk 0:00:03]} 125. Ke5 {[%clk 0:00:05]}  Re3+ {[%clk 0:00:02]} 126. Kd4 {[%clk 0:00:06]}  Kf4 {[%clk 0:00:03]} 127. Rh4+ {[%clk 0:00:06]}  Kg3 {[%clk 0:00:02]} 128. Kxe3 {[%clk 0:00:06]}  Kxh4 {[%clk 0:00:03]} 129. Kf4 {[%clk 0:00:07]}  Kh5 {[%clk 0:00:03]} 130. Kxf5 {[%clk 0:00:08]} 1/2-1/2


[Site "https://www.chess.com"]

[Event "Titled Tuesday Blitz June 27 Early 2023"]
[White "Buscar, Michael"]
[Black "Khoroshev, Nikita"]
[WhiteFideId "2603616"]
[BlackFideId "14200287"]
[WhiteElo "2383"]
[BlackElo "2699"]
[Result "0-1"]
[Round "1"]
[TimeControl "180+2"]
[Date "2023.06.27"]
[WhiteClock "0:00:00"]
[BlackClock "0:01:32"]
[Board "130"]

1. Nf3 {[%clk 0:02:59]}  Nf6 {[%clk 0:02:58]} 2. d4 {[%clk 0:02:59]}  d5 {[%clk 0:02:56]} 3. c4 {[%clk 0:02:58]}  dxc4 {[%clk 0:02:56]} 4. e3 {[%clk 0:02:58]}  a6 {[%clk 0:02:54]} 5. Bxc4 {[%clk 0:02:58]}  c5 {[%clk 0:02:50]} 6. O-O {[%clk 0:02:58]}  e6 {[%clk 0:02:50]} 7. Nc3 {[%clk 0:02:55]}  Be7 {[%clk 0:02:49]} 8. dxc5 {[%clk 0:02:49]}  Qxd1 {[%clk 0:02:48]} 9. Rxd1 {[%clk 0:02:49]}  Bxc5 {[%clk 0:02:49]} 10. b3 {[%clk 0:02:46]}  b5 {[%clk 0:02:46]} 11. Be2 {[%clk 0:02:45]}  Bb7 {[%clk 0:02:45]} 12. Bb2 {[%clk 0:02:45]}  Nbd7 {[%clk 0:02:45]} 13. Rac1 {[%clk 0:02:44]}  Ke7 {[%clk 0:02:41]} 14. Nd4 {[%clk 0:02:39]}  Rac8 {[%clk 0:02:39]} 15. Bf3 {[%clk 0:02:39]}  Bxf3 {[%clk 0:02:39]} 16. Nxf3 {[%clk 0:02:39]}  Rhd8 {[%clk 0:02:38]} 17. Kf1 {[%clk 0:02:37]}  h6 {[%clk 0:02:36]} 18. Ke2 {[%clk 0:02:36]}  Bb6 {[%clk 0:02:29]} 19. Ba3+ {[%clk 0:02:28]}  Bc5 {[%clk 0:02:25]} 20. Bxc5+ {[%clk 0:01:56]}  Rxc5 {[%clk 0:02:26]} 21. Nb1 {[%clk 0:01:43]}  Rdc8 {[%clk 0:02:24]} 22. Rxc5 {[%clk 0:01:42]}  Rxc5 {[%clk 0:02:25]} 23. Nd4 {[%clk 0:01:29]}  Nd5 {[%clk 0:02:21]} 24. Kd2 {[%clk 0:01:25]}  N7f6 {[%clk 0:02:16]} 25. f3 {[%clk 0:01:25]}  g6 {[%clk 0:02:13]} 26. e4 {[%clk 0:01:16]}  Nb6 {[%clk 0:02:07]} 27. Rc1 {[%clk 0:01:15]}  Nfd7 {[%clk 0:01:56]} 28. Rxc5 {[%clk 0:00:52]}  Nxc5 {[%clk 0:01:57]} 29. Nc6+ {[%clk 0:00:41]}  Kd6 {[%clk 0:01:56]} 30. Nb4 {[%clk 0:00:41]}  a5 {[%clk 0:01:54]} 31. Nd3 {[%clk 0:00:41]}  Ncd7 {[%clk 0:01:53]} 32. Nc3 {[%clk 0:00:41]}  Kc6 {[%clk 0:01:49]} 33. Ne2 {[%clk 0:00:29]}  e5 {[%clk 0:01:46]} 34. Nc3 {[%clk 0:00:28]}  b4 {[%clk 0:01:46]} 35. Nd1 {[%clk 0:00:29]}  f6 {[%clk 0:01:44]} 36. Ne3 {[%clk 0:00:29]}  h5 {[%clk 0:01:45]} 37. g4 {[%clk 0:00:26]}  h4 {[%clk 0:01:43]} 38. f4 {[%clk 0:00:24]}  exf4 {[%clk 0:01:40]} 39. Nxf4 {[%clk 0:00:24]}  Ne5 {[%clk 0:01:41]} 40. Ne6 {[%clk 0:00:15]}  Kd6 {[%clk 0:01:38]} 41. Nd4 {[%clk 0:00:14]}  Nbd7 {[%clk 0:01:33]} 42. h3 {[%clk 0:00:11]}  Nc5 {[%clk 0:01:33]} 43. Ke2 {[%clk 0:00:00]}  Nxe4 {[%clk 0:01:32]} 0-1


[Site "https://www.chess.com"]

[Event "Titled Tuesday Blitz June 27 Early 2023"]
[White "Arifarsky"]
[Black "Manukian, Artak"]
[BlackFideId "13301373"]
[WhiteElo "2697"]
[BlackElo "2383"]
[Result "0-1"]
[Round "1"]
[TimeControl "180+2"]
[Date "2023.06.27"]
[WhiteClock "0:00:00"]
[BlackClock "0:00:50"]
[Board "131"]

1. Nf3 {[%clk 0:02:54]}  c5 {[%clk 0:02:56]} 2. e3 {[%clk 0:02:54]}  d5 {[%clk 0:02:56]} 3. b3 {[%clk 0:02:55]}  Nc6 {[%clk 0:02:52]} 4. Bb2 {[%clk 0:02:55]}  f6 {[%clk 0:02:52]} 5. d4 {[%clk 0:02:54]}  Bg4 {[%clk 0:02:51]} 6. Nbd2 {[%clk 0:02:52]}  e5 {[%clk 0:02:44]} 7. dxe5 {[%clk 0:02:47]}  Nxe5 {[%clk 0:02:42]} 8. Be2 {[%clk 0:02:32]}  Bxf3 {[%clk 0:02:32]} 9. Nxf3 {[%clk 0:02:31]}  Nc6 {[%clk 0:02:23]} 10. O-O {[%clk 0:02:27]}  Nh6 {[%clk 0:02:16]} 11. c4 {[%clk 0:02:25]}  dxc4 {[%clk 0:02:16]} 12. Qc2 {[%clk 0:02:25]}  cxb3 {[%clk 0:02:03]} 13. Qxb3 {[%clk 0:02:17]}  Qb6 {[%clk 0:02:02]} 14. Qc2 {[%clk 0:01:47]}  O-O-O {[%clk 0:01:50]} 15. Rab1 {[%clk 0:01:44]}  Nb4 {[%clk 0:01:46]} 16. Qc4 {[%clk 0:01:43]}  Qa6 {[%clk 0:01:41]} 17. Rfc1 {[%clk 0:01:20]}  Qxc4 {[%clk 0:01:37]} 18. Bxc4 {[%clk 0:01:21]}  Nd3 {[%clk 0:01:19]} 19. Rc2 {[%clk 0:01:10]}  Nxb2 {[%clk 0:01:16]} 20. Rcxb2 {[%clk 0:01:10]}  b6 {[%clk 0:01:15]} 21. a4 {[%clk 0:01:10]}  Bd6 {[%clk 0:01:12]} 22. a5 {[%clk 0:01:09]}  Bc7 {[%clk 0:01:12]} 23. g3 {[%clk 0:00:52]}  Rd6 {[%clk 0:01:05]} 24. e4 {[%clk 0:00:37]}  Rhd8 {[%clk 0:01:02]} 25. Bd5 {[%clk 0:00:29]}  Ng4 {[%clk 0:00:55]} 26. Kg2 {[%clk 0:00:28]}  Ne5 {[%clk 0:00:50]} 27. Nxe5 {[%clk 0:00:00]}  fxe5 {[%clk 0:00:50]} 0-1


[Site "https://www.chess.com"]

[Event "Titled Tuesday Blitz June 27 Early 2023"]
[White "Sokolov, Andrei"]
[Black "Goryachkina, Aleksandra"]
[WhiteFideId "11600306"]
[BlackFideId "4147103"]
[WhiteElo "2380"]
[BlackElo "2688"]
[Result "0-1"]
[Round "1"]
[TimeControl "180+2"]
[Date "2023.06.27"]
[WhiteClock "0:00:05"]
[BlackClock "0:00:08"]
[Board "134"]

1. d4 {[%clk 0:02:59]}  Nf6 {[%clk 0:02:59]} 2. c4 {[%clk 0:02:59]}  e6 {[%clk 0:02:59]} 3. g3 {[%clk 0:02:56]}  d5 {[%clk 0:02:58]} 4. Nf3 {[%clk 0:02:55]}  dxc4 {[%clk 0:02:54]} 5. Bg2 {[%clk 0:02:53]}  Bb4+ {[%clk 0:02:52]} 6. Bd2 {[%clk 0:02:52]}  a5 {[%clk 0:02:48]} 7. a3 {[%clk 0:02:35]}  Be7 {[%clk 0:02:38]} 8. O-O {[%clk 0:02:25]}  O-O {[%clk 0:02:36]} 9. Qa4 {[%clk 0:02:00]}  b6 {[%clk 0:02:23]} 10. Qxc4 {[%clk 0:01:49]}  Ba6 {[%clk 0:02:19]} 11. Qc2 {[%clk 0:01:29]}  Bxe2 {[%clk 0:02:18]} 12. Rc1 {[%clk 0:01:20]}  Bxf3 {[%clk 0:02:10]} 13. Bxf3 {[%clk 0:01:18]}  Ra7 {[%clk 0:02:10]} 14. Bf4 {[%clk 0:01:14]}  Bd6 {[%clk 0:02:02]} 15. Bg5 {[%clk 0:00:30]}  h6 {[%clk 0:01:59]} 16. Be3 {[%clk 0:00:26]}  Nd5 {[%clk 0:01:44]} 17. Qd3 {[%clk 0:00:20]}  Qf6 {[%clk 0:01:34]} 18. Bd1 {[%clk 0:00:18]}  Nxe3 {[%clk 0:01:19]} 19. fxe3 {[%clk 0:00:18]}  c5 {[%clk 0:01:17]} 20. Bc2 {[%clk 0:00:18]}  g6 {[%clk 0:01:17]} 21. Rf1 {[%clk 0:00:13]}  Qe7 {[%clk 0:01:15]} 22. Nd2 {[%clk 0:00:07]}  Nd7 {[%clk 0:01:08]} 23. Ne4 {[%clk 0:00:07]}  Rc7 {[%clk 0:00:52]} 24. Rf3 {[%clk 0:00:05]}  c4 {[%clk 0:00:38]} 25. Qf1 {[%clk 0:00:04]}  f5 {[%clk 0:00:38]} 26. Nd2 {[%clk 0:00:02]}  b5 {[%clk 0:00:37]} 27. a4 {[%clk 0:00:02]}  Bb4 {[%clk 0:00:36]} 28. Qe2 {[%clk 0:00:02]}  Bxd2 {[%clk 0:00:34]} 29. Qxd2 {[%clk 0:00:03]}  b4 {[%clk 0:00:34]} 30. Qg2 {[%clk 0:00:02]}  Nf6 {[%clk 0:00:33]} 31. Raf1 {[%clk 0:00:01]}  c3 {[%clk 0:00:16]} 32. b3 {[%clk 0:00:01]}  Rcc8 {[%clk 0:00:14]} 33. h3 {[%clk 0:00:01]}  Kg7 {[%clk 0:00:14]} 34. g4 {[%clk 0:00:02]}  fxg4 {[%clk 0:00:13]} 35. hxg4 {[%clk 0:00:03]}  Nd5 {[%clk 0:00:11]} 36. Rxf8 {[%clk 0:00:01]}  Rxf8 {[%clk 0:00:12]} 37. Qe4 {[%clk 0:00:02]}  Rxf1+ {[%clk 0:00:12]} 38. Kxf1 {[%clk 0:00:03]}  Qf6+ {[%clk 0:00:08]} 39. Kg2 {[%clk 0:00:03]}  Qf7 {[%clk 0:00:03]} 40. Qd3 {[%clk 0:00:01]}  Qf6 {[%clk 0:00:04]} 41. Qe4 {[%clk 0:00:01]}  Kf7 {[%clk 0:00:03]} 42. Qd3 {[%clk 0:00:02]}  Ne7 {[%clk 0:00:03]} 43. Qe4 {[%clk 0:00:02]}  Qg5 {[%clk 0:00:04]} 44. Qf3+ {[%clk 0:00:02]}  Kg7 {[%clk 0:00:04]} 45. Qe4 {[%clk 0:00:03]}  h5 {[%clk 0:00:04]} 46. Kg3 {[%clk 0:00:02]}  Qxg4+ {[%clk 0:00:04]} 47. Qxg4 {[%clk 0:00:03]}  hxg4 {[%clk 0:00:05]} 48. Kxg4 {[%clk 0:00:04]}  Nd5 {[%clk 0:00:05]} 49. Kf3 {[%clk 0:00:02]}  Kf6 {[%clk 0:00:06]} 50. Ke4 {[%clk 0:00:02]}  g5 {[%clk 0:00:06]} 51. Kd3 {[%clk 0:00:03]}  g4 {[%clk 0:00:06]} 52. e4 {[%clk 0:00:03]}  Nf4+ {[%clk 0:00:06]} 53. Kc4 {[%clk 0:00:03]}  g3 {[%clk 0:00:05]} 54. Bd1 {[%clk 0:00:02]}  g2 {[%clk 0:00:05]} 55. e5+ {[%clk 0:00:02]}  Kg5 {[%clk 0:00:05]} 56. Bf3 {[%clk 0:00:02]}  g1=Q {[%clk 0:00:05]} 57. Kb5 {[%clk 0:00:03]}  Qxd4 {[%clk 0:00:05]} 58. Kxa5 {[%clk 0:00:04]}  Qxe5+ {[%clk 0:00:06]} 59. Kxb4 {[%clk 0:00:04]}  c2 {[%clk 0:00:06]} 60. a5 {[%clk 0:00:05]}  c1=Q {[%clk 0:00:06]} 61. a6 {[%clk 0:00:05]}  Qcc3+ {[%clk 0:00:07]} 62. Ka4 {[%clk 0:00:05]}  Qea5# {[%clk 0:00:08]} 0-1


[Site "https://www.chess.com"]

[Event "Titled Tuesday Blitz June 27 Early 2023"]
[White "Melikhov, Evgeny V."]
[Black "Arhan_Anand"]
[WhiteFideId "4122046"]
[WhiteElo "2368"]
[BlackElo "2676"]
[Result "0-1"]
[Round "1"]
[TimeControl "180+2"]
[Date "2023.06.27"]
[WhiteClock "0:00:58"]
[BlackClock "0:02:09"]
[Board "138"]

1. d4 {[%clk 0:03:00]}  d5 {[%clk 0:02:59]} 2. c4 {[%clk 0:03:00]}  c6 {[%clk 0:02:59]} 3. Nc3 {[%clk 0:03:00]}  Nf6 {[%clk 0:02:59]} 4. e3 {[%clk 0:03:00]}  e6 {[%clk 0:02:59]} 5. Nf3 {[%clk 0:03:00]}  Nbd7 {[%clk 0:02:59]} 6. Bd3 {[%clk 0:03:00]}  Bd6 {[%clk 0:03:00]} 7. O-O {[%clk 0:03:00]}  dxc4 {[%clk 0:03:00]} 8. Bxc4 {[%clk 0:02:59]}  O-O {[%clk 0:03:00]} 9. e4 {[%clk 0:02:51]}  b5 {[%clk 0:02:59]} 10. Bd3 {[%clk 0:02:48]}  e5 {[%clk 0:02:58]} 11. Bg5 {[%clk 0:02:47]}  exd4 {[%clk 0:02:56]} 12. Nxd4 {[%clk 0:02:42]}  Ne5 {[%clk 0:02:55]} 13. Be2 {[%clk 0:02:38]}  b4 {[%clk 0:02:54]} 14. Nf5 {[%clk 0:02:36]}  Bxf5 {[%clk 0:02:52]} 15. exf5 {[%clk 0:02:09]}  bxc3 {[%clk 0:02:50]} 16. bxc3 {[%clk 0:01:51]}  Be7 {[%clk 0:02:48]} 17. Re1 {[%clk 0:01:42]}  Qxd1 {[%clk 0:02:47]} 18. Bxd1 {[%clk 0:01:40]}  Bd6 {[%clk 0:02:43]} 19. Ba4 {[%clk 0:01:38]}  Rfd8 {[%clk 0:02:29]} 20. f4 {[%clk 0:01:32]}  Bc5+ {[%clk 0:02:29]} 21. Kf1 {[%clk 0:01:28]}  Neg4 {[%clk 0:02:26]} 22. Bxc6 {[%clk 0:01:26]}  Rac8 {[%clk 0:02:26]} 23. Bb7 {[%clk 0:01:15]}  Rb8 {[%clk 0:02:24]} 24. Rab1 {[%clk 0:01:12]}  Nxh2+ {[%clk 0:02:19]} 25. Ke2 {[%clk 0:01:11]}  Re8+ {[%clk 0:02:18]} 26. Kd2 {[%clk 0:01:05]}  Rxe1 {[%clk 0:02:15]} 27. Kxe1 {[%clk 0:01:05]}  Bb6 {[%clk 0:02:09]} 28. Ba6 {[%clk 0:00:58]}  Bf2+ {[%clk 0:02:09]} 0-1


[Site "https://www.chess.com"]

[Event "Titled Tuesday Blitz June 27 Early 2023"]
[White "a-z30"]
[Black "Agibileg, Uurtsaikh"]
[BlackFideId "4901606"]
[WhiteElo "2360"]
[BlackElo "2669"]
[Result "0-1"]
[Round "1"]
[TimeControl "180+2"]
[Date "2023.06.27"]
[WhiteClock "0:00:14"]
[BlackClock "0:02:17"]
[Board "142"]

1. d3 {[%clk 0:02:59]}  Nf6 {[%clk 0:02:58]} 2. Nf3 {[%clk 0:03:00]}  g6 {[%clk 0:02:59]} 3. g3 {[%clk 0:03:00]}  Bg7 {[%clk 0:03:00]} 4. Bg2 {[%clk 0:03:01]}  O-O {[%clk 0:03:01]} 5. O-O {[%clk 0:03:02]}  d6 {[%clk 0:03:02]} 6. c4 {[%clk 0:03:03]}  e5 {[%clk 0:03:02]} 7. Nc3 {[%clk 0:03:03]}  Nbd7 {[%clk 0:03:02]} 8. Rb1 {[%clk 0:02:56]}  a5 {[%clk 0:03:01]} 9. b3 {[%clk 0:02:56]}  c6 {[%clk 0:03:01]} 10. Qc2 {[%clk 0:02:54]}  h6 {[%clk 0:03:01]} 11. e3 {[%clk 0:02:50]}  Nc5 {[%clk 0:03:00]} 12. d4 {[%clk 0:02:00]}  Bf5 {[%clk 0:03:00]} 13. e4 {[%clk 0:01:59]}  Ncxe4 {[%clk 0:02:50]} 14. Nh4 {[%clk 0:01:59]}  Nxg3 {[%clk 0:02:50]} 15. Nxf5 {[%clk 0:01:54]}  Nxf5 {[%clk 0:02:51]} 16. dxe5 {[%clk 0:01:52]}  dxe5 {[%clk 0:02:50]} 17. Re1 {[%clk 0:01:39]}  Nd4 {[%clk 0:02:49]} 18. Qd1 {[%clk 0:01:38]}  Qc7 {[%clk 0:02:44]} 19. Be3 {[%clk 0:01:15]}  Rad8 {[%clk 0:02:43]} 20. Bxd4 {[%clk 0:01:15]}  exd4 {[%clk 0:02:44]} 21. Ne4 {[%clk 0:01:14]}  Nh5 {[%clk 0:02:43]} 22. Qf3 {[%clk 0:01:04]}  Nf4 {[%clk 0:02:42]} 23. Rbd1 {[%clk 0:00:55]}  d3 {[%clk 0:02:37]} 24. Nc5 {[%clk 0:00:47]}  d2 {[%clk 0:02:34]} 25. Re4 {[%clk 0:00:46]}  Nxg2 {[%clk 0:02:33]} 26. Kxg2 {[%clk 0:00:45]}  h5 {[%clk 0:02:30]} 27. Re2 {[%clk 0:00:33]}  Bh6 {[%clk 0:02:30]} 28. Ne4 {[%clk 0:00:31]}  f5 {[%clk 0:02:30]} 29. Nc5 {[%clk 0:00:31]}  Rfe8 {[%clk 0:02:20]} 30. Ne6 {[%clk 0:00:30]}  Qe7 {[%clk 0:02:20]} 31. Nf4 {[%clk 0:00:20]}  Qg5+ {[%clk 0:02:20]} 32. Qg3 {[%clk 0:00:17]}  Qxg3+ {[%clk 0:02:19]} 33. hxg3 {[%clk 0:00:16]}  Bxf4 {[%clk 0:02:17]} 34. Rxe8+ {[%clk 0:00:15]}  Rxe8 {[%clk 0:02:18]} 35. gxf4 {[%clk 0:00:16]}  Rd8 {[%clk 0:02:18]} 36. Kf3 {[%clk 0:00:15]}  h4 {[%clk 0:02:16]} 37. Kg2 {[%clk 0:00:14]}  Rd3 {[%clk 0:02:16]} 38. f3 {[%clk 0:00:14]}  Kg7 {[%clk 0:02:16]} 39. Kh3 {[%clk 0:00:15]}  Rxf3+ {[%clk 0:02:16]} 40. Kxh4 {[%clk 0:00:14]}  Rxf4+ {[%clk 0:02:17]} 0-1


[Site "https://www.chess.com"]

[Event "Titled Tuesday Blitz June 27 Early 2023"]
[White "StiffMaster1"]
[Black "Llanos, Guillermo"]
[BlackFideId "100358"]
[WhiteElo "2669"]
[BlackElo "2359"]
[Result "1-0"]
[Round "1"]
[TimeControl "180+2"]
[Date "2023.06.27"]
[WhiteClock "0:01:43"]
[BlackClock "0:01:00"]
[Board "143"]

1. Nf3 {[%clk 0:02:49]}  c5 {[%clk 0:02:56]} 2. g3 {[%clk 0:02:49]}  Nc6 {[%clk 0:02:53]} 3. Bg2 {[%clk 0:02:50]}  e5 {[%clk 0:02:53]} 4. O-O {[%clk 0:02:51]}  g6 {[%clk 0:02:51]} 5. Nc3 {[%clk 0:02:51]}  Bg7 {[%clk 0:02:51]} 6. e4 {[%clk 0:02:49]}  Nge7 {[%clk 0:02:51]} 7. Nd5 {[%clk 0:02:49]}  Nxd5 {[%clk 0:02:43]} 8. exd5 {[%clk 0:02:50]}  Ne7 {[%clk 0:02:43]} 9. c4 {[%clk 0:02:50]}  d6 {[%clk 0:02:43]} 10. d3 {[%clk 0:02:48]}  O-O {[%clk 0:02:42]} 11. a3 {[%clk 0:02:48]}  a5 {[%clk 0:02:41]} 12. Rb1 {[%clk 0:02:47]}  a4 {[%clk 0:02:35]} 13. b4 {[%clk 0:02:39]}  axb3 {[%clk 0:02:34]} 14. Qxb3 {[%clk 0:02:38]}  h6 {[%clk 0:02:33]} 15. Ne1 {[%clk 0:02:35]}  f5 {[%clk 0:02:32]} 16. f4 {[%clk 0:02:34]}  Kh7 {[%clk 0:02:24]} 17. fxe5 {[%clk 0:02:33]}  Bxe5 {[%clk 0:02:21]} 18. Nc2 {[%clk 0:02:32]}  g5 {[%clk 0:01:56]} 19. d4 {[%clk 0:02:28]}  cxd4 {[%clk 0:01:55]} 20. Bb2 {[%clk 0:02:27]}  Ng6 {[%clk 0:01:51]} 21. Nxd4 {[%clk 0:02:27]}  Qf6 {[%clk 0:01:41]} 22. Nb5 {[%clk 0:02:12]}  f4 {[%clk 0:01:36]} 23. Nc7 {[%clk 0:02:08]}  Bf5 {[%clk 0:01:30]} 24. Bxe5 {[%clk 0:01:55]}  dxe5 {[%clk 0:01:16]} 25. Nxa8 {[%clk 0:01:55]}  Bxb1 {[%clk 0:01:15]} 26. Qxb1 {[%clk 0:01:56]}  Rxa8 {[%clk 0:01:10]} 27. Qxb7+ {[%clk 0:01:55]}  Qe7 {[%clk 0:01:07]} 28. Qxa8 {[%clk 0:01:53]}  e4 {[%clk 0:01:03]} 29. d6 {[%clk 0:01:43]}  Qxd6 {[%clk 0:01:00]} 1-0


[Site "https://www.chess.com"]